Workbook

Sheet READ THIS - DESTRUCTIONS
A1: Universal Macros Calculator
A2: (Grams or Percentages)
C4: Spreadsheet by ViolentZen.com | J4: Beta 0.7
A6: Click Here to Watch the Video on How to Use this Calculator
A7: >> Click Here to GET NOTIFIED When I Update this Calculator
A10: ! READ THIS NOW !
A11: *** DESTRUCTIONS ***
A13: TABS Overview: Each tab will automatically calculate everything for you based on number of meals you select.
A14: OR…
A15: - In the MACROS (by GRAMS) tab you can manually modify the grams for individual meals. - In the MACROS (by PERCENTAGE) tab you can manually modify the percentages.
A17: There are a ton of places to calculate your calories, percentages, grams, etc. I calculated everything at
F18: http://iifym.com/iifym-calculator/
A20: Each sheet should be fairly self explanatory, BUT be sure to check out the video how to link above.
A23: I'm not an expert with Excel, so this took me a while to create. Any feedback would be greatly appreciated.
A24: Please comment at the bottom of the Universal Macros Article at: | G24: Click Here to Leave Comments/Feedback
A25: or click here to email us at --> | D25: coolstuff@violentzen.com | F25: Please Use email SUBJECT: Universal Macros Calculator Feedback
A27: Enjoy,
A28: Travis
A29: It's not about how you train… It's about WHY you train!
A31: DISCLAIMER: Violent Zen™ is not affiliated in any way with IIFYM.com and we do not receive any compensation for mentioning their calculator. This is not an endorsement, but only a reference for calculating macros.
... 1 more rows

Sheet MACROS (by GRAMS)
A1: TRAINING DAY MACROS (g) | R1: 1
A2: You Can Modify green, yellow & blue fields only. (Examples entered) | R2: 2
A3: ENTER TRAINING DAY GOALS --> | C3: Carbs (g) | D3: Carbs % | F3: Protein (g) | G3: Protein % | I3: Fat (g) | J3: Fat % | L3: Calories | R3: 3
C4: 179 | D4: =IF(C4="",0,ROUND(((C4*4)/((F4*4)+(C4*4)+(I4*9))),2)) -> 0.25 | F4: 286.4 | G4: =IF(F4="",0,ROUND(((F4*4)/((F4*4)+(C4*4)+(I4*9))),2)) -> 0.4 | I4: 111.4 | J4: =IF(I4="",0,ROUND(((I4*9)/((F4*4)+(C4*4)+(I4*9))),2)) -> 0.35 | L4: =(F4*4)+(C4*4)+(I4*9) -> 2864.2 | R4: 4
I5: Created by ViolentZen.com | R5: 5
A6: SELECT # OF MEALS>>> | C6: 3 | E6: << Select 1-7 for equal grams per meal OR modify manually below | R6: 6
A7: or modify manually below | R7: 7
A8: Time | B8: Meal | C8: Carbs (g) | D8: % of Total g | E8: % (meal) | F8: Protein (g) | G8: % of Total g | H8: % (meal) | I8: Fat (g) | J8: % of Total g | K8: % (meal) | L8: Calories | N8: Added Sugar (g)
A9: 07:30:00 | B9: Breakfast | C9: 25 | D9: =IF(C9=0,0,C9/C4) -> 0.1396648045 | E9: =IF(C9=0,0,((C9*4)/((F9*4)+(C9*4)+(I9*9)))) -> 0.1225390083 | F9: =IF(AND(C6>0),(F4/C6),0) -> 95.46666667 | G9: =IF(F9=0,0,F9/F4) -> 0.3333333333 | H9: =IF(F9=0,0,((F9*4)/((F9*4)+(C9*4)+(I9*9)))) -> 0.4679356262 | I9: =IF(AND(C6>0),(I4/C6),0) -> 37.13333333 | J9: =IF(I9=0,0,I9/I4) -> 0.3333333333 | K9: =IF(I9=0,0,((I9*9)/((F9*4)+(C9*4)+(I9*9)))) -> 0.4095253656 | L9: =(F9*4)+(C9*4)+(I9*9) -> 816.0666667
A10: 10:00:00 | B10: Snack | C10: 75 | D10: =IF(C10=0,0,C10/C4) -> 0.4189944134 | E10: 0.2952562168 | F10: =IF(AND(C6>1),(F4/C6),0) -> 95.46666667 | G10: =IF(F10=0,0,F10/F4) -> 0.3333333333 | H10: 0.3758283577 | I10: =IF(AND(C6>1),(I4/C6),0) -> 37.13333333 | J10: =IF(I10=0,0,I10/I4) -> 0.3333333333 | K10: 0.3289154255 | L10: 1016.066667
A11: 12:30:00 | B11: Lunch | C11: 79 | D11: =IF(C11=0,0,C11/C4) -> 0.4413407821 | E11: 0.3061817712 | F11: =IF(AND(C6>2),(F4/C6),0) -> 95.46666667 | G11: =IF(F11=0,0,F11/F4) -> 0.3333333333 | H11: 0.3700019379 | I11: =IF(AND(C6>2),(I4/C6),0) -> 37.13333333 | J11: =IF(I11=0,0,I11/I4) -> 0.3333333333 | K11: 0.3238162909 | L11: 1032.066667
A12: 14:30:00 | B12: Snack | C12: =IF(AND(C6>3),(C4/C6),0) -> 0 | D12: =IF(C12=0,0,C12/C4) -> 0 | E12: 0 | F12: =IF(AND(C6>3),(F4/C6),0) -> 0 | G12: =IF(F12=0,0,F12/F4) -> 0 | H12: 0 | I12: =IF(AND(C6>3),(I4/C6),0) -> 0 | J12: =IF(I12=0,0,I12/I4) -> 0 | K12: 0 | L12: 0
A13: 18:30:00 | B13: Post Wkout | C13: =IF(AND(C6>4),(C4/C6),0) -> 0 | D13: =IF(C13=0,0,C13/C4) -> 0 | E13: 0 | F13: =IF(AND(C6>4),(F4/C6),0) -> 0 | G13: =IF(F13=0,0,F13/F4) -> 0 | H13: 0 | I13: =IF(AND(C6>4),(I4/C6),0) -> 0 | J13: =IF(I13=0,0,I13/I4) -> 0 | K13: 0 | L13: 0
A14: 20:00:00 | B14: Dinner | C14: =IF(AND(C6>5),(C4/C6),0) -> 0 | D14: =IF(C14=0,0,C14/C4) -> 0 | E14: 0 | F14: =IF(AND(C6>5),(F4/C6),0) -> 0 | G14: =IF(F14=0,0,F14/F4) -> 0 | H14: 0 | I14: =IF(AND(C6>5),(I4/C6),0) -> 0 | J14: =IF(I14=0,0,I14/I4) -> 0 | K14: 0 | L14: 0
A15: 23:00:00 | B15: Late | C15: =IF(AND(C6>6),(C4/C6),0) -> 0 | D15: =IF(C15=0,0,C15/C4) -> 0 | E15: 0 | F15: =IF(AND(C6>6),(F4/C6),0) -> 0 | G15: =IF(F15=0,0,F15/F4) -> 0 | H15: 0 | I15: =IF(AND(C6>6),(I4/C6),0) -> 0 | J15: =IF(I15=0,0,I15/I4) -> 0 | K15: 0 | L15: 0
A16: DAILY TOTAL | C16: =ROUND(SUM(C9:C15),2) -> 179 | D16: =ROUND(SUM(D9:D15),2) -> 1 | E16: =IF(C16=0,0,ROUND(((SUM(C9:C15)*4))/((SUM(F9:F15)*4+(SUM(C9:C15)*4+(SUM(I9:I15)*9)))),2)) -> 0.25 | F16: =ROUND(SUM(F9:F15),2) -> 286.4 | G16: =ROUND(SUM(G9:G15),2) -> 1 | H16: =IF(F16=0,0,ROUND(IF(F16=0,0,((F16*4)/((F16*4)+(C16*4)+(I16*9)))),2)) -> 0.4 | I16: =ROUND(SUM(I9:I15),2) -> 111.4 | J16: =ROUND(SUM(J9:J15),2) -> 1 | K16: =IF(I16=0,0,ROUND(((SUM(I9:I15)*9))/((SUM(F9:F15)*4+(SUM(C9:C15)*4+(SUM(I9:I15)*9)))),2)) -> 0.35 | L16: =ROUND((F16*4)+(C16*4)+(I16*9),1) -> 2864.2 | N16: =SUM(N9:N15) -> 0
A17: Over/Under Goal | C17: =C16-C4 -> 0 | D17: =D16-1 -> 0 | F17: =F16-F4 -> 0 | G17: =G16-1 -> 0 | I17: =I16-I4 -> 0 | J17: =J16-1 -> 0 | L17: =(F17*4)+(C17*4)+(I17*9) -> 0
N18: Daily Totals Rounding Notes: | O18: Grams have a +/- of up to 1g
O19: Calories have a +/- of up to 0.5 cal
A20: OFF DAY MACROS (g)
A21: You Can Modify green, yellow & blue fields only. (Examples entered)
A22: ENTER OFF DAY GOALS --> | C22: Carbs (g) | D22: Carbs % | F22: Protein (g) | G22: Protein % | I22: Fat (g) | J22: Fat % | L22: Calories
C23: 62.3 | D23: =IF(C23="",0,ROUND(((C23*4)/((F23*4)+(C23*4)+(I23*9))),2)) -> 0.1 | F23: 249 | G23: =IF(F23="",0,ROUND(((F23*4)/((F23*4)+(C23*4)+(I23*9))),2)) -> 0.4 | I23: 138.3 | J23: =IF(I23="",0,ROUND(((I23*9)/((F23*4)+(C23*4)+(I23*9))),2)) -> 0.5 | L23: =(F23*4)+(C23*4)+(I23*9) -> 2489.9
A25: SELECT # OF MEALS>>> | C25: 7 | E25: << Select 1-7 for equal grams per meal OR modify manually below
A26: or modify manually below
A27: Time | B27: Meal | C27: Carbs (g) | D27: % of Total g | E27: % (meal) | F27: Protein (g) | G27: % of Total g | H27: % (meal) | I27: Fat (g) | J27: % of Total g | K27: % (meal) | L27: Calories | N27: Added Sugar (g)
A28: 07:30:00 | B28: Breakfast | C28: =IF(AND(C25>0),(C23/C25),0) -> 8.9 | D28: =IF(C28=0,0,C28/C23) -> 0.1428571429 | E28: =IF(C28=0,0,((C28*4)/((F28*4)+(C28*4)+(I28*9)))) -> 0.1000843407 | F28: =IF(AND(C25>0),(F23/C25),0) -> 35.57142857 | G28: =IF(F28=0,0,F28/F23) -> 0.1428571429 | H28: =IF(F28=0,0,((F28*4)/((F28*4)+(C28*4)+(I28*9)))) -> 0.4000160649 | I28: =IF(AND(C25>0),(I23/C25),0) -> 19.75714286 | J28: =IF(I28=0,0,I28/I23) -> 0.1428571429 | K28: =IF(I28=0,0,((I28*9)/((F28*4)+(C28*4)+(I28*9)))) -> 0.4998995944 | L28: =(F28*4)+(C28*4)+(I28*9) -> 355.7
A29: 10:00:00 | B29: Snack | C29: =IF(AND(C25>1),(C23/C25),0) -> 8.9 | D29: =IF(C29=0,0,C29/C23) -> 0.1428571429 | E29: 0.1000843407 | F29: =IF(AND(C25>1),(F23/C25),0) -> 35.57142857 | G29: =IF(F29=0,0,F29/F23) -> 0.1428571429 | H29: 0.4000160649 | I29: =IF(AND(C25>1),(I23/C25),0) -> 19.75714286 | J29: =IF(I29=0,0,I29/I23) -> 0.1428571429 | K29: 0.4998995944 | L29: 355.7
A30: 12:30:00 | B30: Lunch | C30: =IF(AND(C25>2),(C23/C25),0) -> 8.9 | D30: =IF(C30=0,0,C30/C23) -> 0.1428571429 | E30: 0.1000843407 | F30: =IF(AND(C25>2),(F23/C25),0) -> 35.57142857 | G30: =IF(F30=0,0,F30/F23) -> 0.1428571429 | H30: 0.4000160649 | I30: =IF(AND(C25>2),(I23/C25),0) -> 19.75714286 | J30: =IF(I30=0,0,I30/I23) -> 0.1428571429 | K30: 0.4998995944 | L30: 355.7
A31: 14:30:00 | B31: Snack | C31: =IF(AND(C25>3),(C23/C25),0) -> 8.9 | D31: =IF(C31=0,0,C31/C23) -> 0.1428571429 | E31: 0.1000843407 | F31: =IF(AND(C25>3),(F23/C25),0) -> 35.57142857 | G31: =IF(F31=0,0,F31/F23) -> 0.1428571429 | H31: 0.4000160649 | I31: =IF(AND(C25>3),(I23/C25),0) -> 19.75714286 | J31: =IF(I31=0,0,I31/I23) -> 0.1428571429 | K31: 0.4998995944 | L31: 355.7
A32: 18:30:00 | B32: mmm snack | C32: =IF(AND(C25>4),(C23/C25),0) -> 8.9 | D32: =IF(C32=0,0,C32/C23) -> 0.1428571429 | E32: 0.1000843407 | F32: =IF(AND(C25>4),(F23/C25),0) -> 35.57142857 | G32: =IF(F32=0,0,F32/F23) -> 0.1428571429 | H32: 0.4000160649 | I32: =IF(AND(C25>4),(I23/C25),0) -> 19.75714286 | J32: =IF(I32=0,0,I32/I23) -> 0.1428571429 | K32: 0.4998995944 | L32: 355.7
A33: 20:00:00 | B33: Dinner | C33: =IF(AND(C25>5),(C23/C25),0) -> 8.9 | D33: =IF(C33=0,0,C33/C23) -> 0.1428571429 | E33: 0.1000843407 | F33: =IF(AND(C25>5),(F23/C25),0) -> 35.57142857 | G33: =IF(F33=0,0,F33/F23) -> 0.1428571429 | H33: 0.4000160649 | I33: =IF(AND(C25>5),(I23/C25),0) -> 19.75714286 | J33: =IF(I33=0,0,I33/I23) -> 0.1428571429 | K33: 0.4998995944 | L33: 355.7
A34: 23:00:00 | B34: Late | C34: =IF(AND(C25>6),(C23/C25),0) -> 8.9 | D34: =IF(C34=0,0,C34/C23) -> 0.1428571429 | E34: 0.1000843407 | F34: =IF(AND(C25>6),(F23/C25),0) -> 35.57142857 | G34: =IF(F34=0,0,F34/F23) -> 0.1428571429 | H34: 0.4000160649 | I34: =IF(AND(C25>6),(I23/C25),0) -> 19.75714286 | J34: =IF(I34=0,0,I34/I23) -> 0.1428571429 | K34: 0.4998995944 | L34: 355.7
A35: DAILY TOTAL | C35: =ROUND(SUM(C28:C34),2) -> 62.3 | D35: =ROUND(SUM(D28:D34),2) -> 1 | E35: =IF(C35=0,0,ROUND(((SUM(C28:C34)*4))/((SUM(F28:F34)*4+(SUM(C28:C34)*4+(SUM(I28:I34)*9)))),2)) -> 0.1 | F35: =ROUND(SUM(F28:F34),2) -> 249 | G35: =ROUND(SUM(G28:G34),2) -> 1 | H35: =IF(F35=0,0,ROUND(((SUM(F28:F34)*4))/((SUM(F28:F34)*4+(SUM(C28:C34)*4+(SUM(I28:I34)*9)))),2)) -> 0.4 | I35: =ROUND(SUM(I28:I34),2) -> 138.3 | J35: =ROUND(SUM(J28:J34),2) -> 1 | K35: =IF(I35=0,0,ROUND(((SUM(I28:I34)*9))/((SUM(F28:F34)*4+(SUM(C28:C34)*4+(SUM(I28:I34)*9)))),2)) -> 0.5 | L35: =ROUND((F35*4)+(C35*4)+(I35*9),1) -> 2489.9 | N35: =SUM(N28:N34) -> 0
A36: Over/Under Goal | C36: =C35-C23 -> 0 | D36: =D35-1 -> 0 | F36: =F35-F23 -> 0 | G36: =G35-1 -> 0 | I36: =I35-I23 -> 0 | J36: =J35-1 -> 0 | L36: =(F36*4)+(C36*4)+(I36*9) -> 0
... 1 more rows

Sheet MACROS (by PERCENTAGE)
I1: Created by ViolentZen.com
A2: TRAINING DAY MACROS (%) | R2: 1
A3: You Can Modify green, yellow & blue fields only. (Examples entered) | R3: 2
A4: ENTER TRAINING DAY GOALS --> | C4: Carbs (g) | D4: Carbs (%) | F4: Protein (g) | G4: Protein (%) | I4: Fat (g) | J4: Fat (%) | L4: Calories | R4: 3
C5: =ROUND((D5*L5)/4,2) -> 179 | D5: 0.25 | F5: =ROUND((L5*G5)/4,2) -> 286.4 | G5: 0.4 | I5: =ROUND((L5*J5)/9,2) -> 111.38 | J5: 0.35 | L5: 2864 | R5: 4
J6: This must be 100% --> | L6: =IF(G5+D5+J5=100,,G5+D5+J5) -> 1 | R6: 5
A7: SELECT # OF MEALS>>> | C7: 3 | E7: << Select 1-7 for equal percentages OR modify manually below | R7: 6
A8: OR modify manually below | R8: 7
A9: Time | B9: Meal | C9: Carbs (g) | D9: % of Total g | E9: % (meal) | F9: Protein (g) | G9: % of Total g | H9: % (meal) | I9: Fat (g) | J9: % of Total g | K9: % (meal) | L9: Calories | N9: Added Sugar (g)
A10: 07:30:00 | B10: Breakfast | C10: =IF(D10="",0,C5*D10) -> 44.75 | D10: 0.25 | E10: =IF(C10=0,0,((C10*4)/((F10*4)+(C10*4)+(I10*9)))) -> 0.1999985103 | F10: =IF(G10="",0,F5*G10) -> 95.46666667 | G10: =IF(AND(C7>0),(F5/C7/F5),0) -> 0.3333333333 | H10: =IF(F10=0,0,((F10*4)/((F10*4)+(C10*4)+(I10*9)))) -> 0.4266634885 | I10: =IF(J10="",0,I5*J10) -> 37.12666667 | J10: =IF(AND(C7>0),(I5/C7/I5),0) -> 0.3333333333 | K10: =IF(I10=0,0,((I10*9)/((F10*4)+(C10*4)+(I10*9)))) -> 0.3733380012 | L10: =(F10*4)+(C10*4)+(I10*9) -> 895.0066667
A11: 10:00:00 | B11: Snack | C11: =IF(D11="",0,C5*D11) -> 134.25 | D11: 0.75 | E11: 0.4285691483 | F11: =IF(G11="",0,F5*G11) -> 95.46666667 | G11: =IF(AND(C7>1),(F5/C7/F5),0) -> 0.3333333333 | H11: 0.3047602833 | I11: =IF(J11="",0,I5*J11) -> 37.12666667 | J11: =IF(AND(C7>1),(I5/C7/I5),0) -> 0.3333333333 | K11: 0.2666705684 | L11: 1253.006667
A12: 12:30:00 | B12: Lunch | C12: =IF(D12="",0,C5*D12) -> 0 | D12: 0 | E12: 0 | F12: =IF(G12="",0,F5*G12) -> 95.46666667 | G12: =IF(AND(C7>2),(F5/C7/F5),0) -> 0.3333333333 | H12: 0.5333283675 | I12: =IF(J12="",0,I5*J12) -> 37.12666667 | J12: =IF(AND(C7>2),(I5/C7/I5),0) -> 0.3333333333 | K12: 0.4666716325 | L12: 716.0066667
A13: 14:30:00 | B13: Snack | C13: =IF(D13="",0,C5*D13) -> 0 | D13: =IF(AND(C7>3),(C5/C7/C5),0) -> 0 | E13: 0 | F13: =IF(G13="",0,F5*G13) -> 0 | G13: =IF(AND(C7>3),(F5/C7/F5),0) -> 0 | H13: 0 | I13: =IF(J13="",0,I5*J13) -> 0 | J13: =IF(AND(C7>3),(I5/C7/I5),0) -> 0 | K13: 0 | L13: 0
A14: 18:30:00 | B14: Post Wkout | C14: =IF(D14="",0,C5*D14) -> 0 | D14: =IF(AND(C7>4),(C5/C7/C5),0) -> 0 | E14: 0 | F14: =IF(G14="",0,F5*G14) -> 0 | G14: =IF(AND(C7>4),(F5/C7/F5),0) -> 0 | H14: 0 | I14: =IF(J14="",0,I5*J14) -> 0 | J14: =IF(AND(C7>4),(I5/C7/I5),0) -> 0 | K14: 0 | L14: 0
A15: 20:00:00 | B15: Dinner | C15: =IF(D15="",0,C5*D15) -> 0 | D15: =IF(AND(C7>5),(C5/C7/C5),0) -> 0 | E15: 0 | F15: =IF(G15="",0,F5*G15) -> 0 | G15: =IF(AND(C7>5),(F5/C7/F5),0) -> 0 | H15: 0 | I15: =IF(J15="",0,I5*J15) -> 0 | J15: =IF(AND(C7>5),(I5/C7/I5),0) -> 0 | K15: 0 | L15: 0
A16: 23:00:00 | B16: Late | C16: =IF(D16="",0,C5*D16) -> 0 | D16: =IF(AND(C7>6),(C5/C7/C5),0) -> 0 | E16: 0 | F16: =IF(G16="",0,F5*G16) -> 0 | G16: =IF(AND(C7>6),(F5/C7/F5),0) -> 0 | H16: 0 | I16: =IF(J16="",0,I5*J16) -> 0 | J16: =IF(AND(C7>6),(I5/C7/I5),0) -> 0 | K16: 0 | L16: 0
A17: DAILY TOTAL | C17: =ROUND(SUM(C10:C16),2) -> 179 | D17: =ROUND(SUM(D10:D16),2) -> 1 | E17: =IF(C17=0,0,ROUND(((SUM(C10:C16)*4))/((SUM(F10:F16)*4+(SUM(C10:C16)*4+(SUM(I10:I16)*9)))),2)) -> 0.25 | F17: =ROUND(SUM(F10:F16),2) -> 286.4 | G17: =ROUND(SUM(G10:G16),2) -> 1 | H17: =IF(F17=0,0,ROUND(IF(F17=0,0,((F17*4)/((F17*4)+(C17*4)+(I17*9)))),2)) -> 0.4 | I17: =ROUND(SUM(I10:I16),2) -> 111.38 | J17: =ROUND(SUM(J10:J16),2) -> 1 | K17: =IF(I17=0,0,ROUND(((SUM(I10:I16)*9))/((SUM(F10:F16)*4+(SUM(C10:C16)*4+(SUM(I10:I16)*9)))),2)) -> 0.35 | L17: =ROUND((F17*4)+(C17*4)+(I17*9),1) -> 2864 | N17: =SUM(N10:N16) -> 0
A18: Over/Under Goal | C18: =C17-C5 -> 0 | D18: =D17-1 -> 0 | F18: =F17-F5 -> 0 | G18: =G17-1 -> 0 | I18: =I17-I5 -> 0 | J18: =J17-1 -> 0 | L18: =(F18*4)+(C18*4)+(I18*9) -> 0
N19: Daily Totals Rounding Notes: | O19: Grams have a +/- of up to 1g
O20: Calories have a +/- of up to 0.5 cal
A21: OFF DAY MACROS (%)
A22: You Can Modify green, yellow & blue fields only. (Examples entered)
A23: ENTER OFF DAY GOALS --> | C23: Carbs (g) | D23: Carbs (%) | F23: Protein (g) | G23: Protein (%) | I23: Fat (g) | J23: Fat (%) | L23: Calories
C24: =ROUND((D24*L24)/4,2) -> 62.25 | D24: 0.1 | F24: =ROUND((G24*L24)/4,2) -> 249 | G24: 0.4 | I24: =ROUND((J24*L24)/9,2) -> 138.33 | J24: 0.5 | L24: 2490
J25: This must be 100% --> | L25: =IF(G24+D24+J24=100,,G24+D24+J24) -> 1
A26: SELECT # OF MEALS>>> | C26: 7 | E26: EXAMPLE # OF MEALS: | H26: 3 | I26: 4 | J26: 5 | K26: 6 | L26: 7
A27: OR modify manually below | E27: << Select 1-7 for equal grams per meal | H27: =1/3 -> 0.3333333333 | I27: =1/I26 -> 0.25 | J27: =1/J26 -> 0.2 | K27: =1/K26 -> 0.1666666667 | L27: =1/L26 -> 0.1428571429
A28: Time | B28: Meal | C28: Carbs (g) | D28: % of Total g | E28: % (meal) | F28: Protein (g) | G28: % of Total g | H28: % (meal) | I28: Fat (g) | J28: % of Total g | K28: % (meal) | L28: Calories | N28: Added Sugar (g)
A29: 07:30:00 | B29: Breakfast | C29: =IF(D29="",0,C24*D29) -> 8.892857143 | D29: =IF(AND(C26>0),(C24/C26/C24),0) -> 0.1428571429 | E29: =IF(C29=0,0,((C29*4)/((F29*4)+(C29*4)+(I29*9)))) -> 0.1000012048 | F29: =IF(G29="",0,F24*G29) -> 35.57142857 | G29: =IF(AND(C26>0),(F24/C26/F24),0) -> 0.1428571429 | H29: =IF(F29=0,0,((F29*4)/((F29*4)+(C29*4)+(I29*9)))) -> 0.4000048193 | I29: =IF(J29="",0,I24*J29) -> 19.76142857 | J29: =IF(AND(C26>0),(I24/C26/I24),0) -> 0.1428571429 | K29: =IF(I29=0,0,((I29*9)/((F29*4)+(C29*4)+(I29*9)))) -> 0.4999939758 | L29: =(F29*4)+(C29*4)+(I29*9) -> 355.71
A30: 10:00:00 | B30: Snack | C30: =IF(D30="",0,C24*D30) -> 8.892857143 | D30: =IF(AND(C26>1),(C24/C26/C24),0) -> 0.1428571429 | E30: 0.1000012048 | F30: =IF(G30="",0,F24*G30) -> 35.57142857 | G30: =IF(AND(C26>1),(F24/C26/F24),0) -> 0.1428571429 | H30: 0.4000048193 | I30: =IF(J30="",0,I24*J30) -> 19.76142857 | J30: =IF(AND(C26>1),(I24/C26/I24),0) -> 0.1428571429 | K30: 0.4999939758 | L30: 355.71
A31: 12:30:00 | B31: Lunch | C31: =IF(D31="",0,C24*D31) -> 8.892857143 | D31: =IF(AND(C26>2),(C24/C26/C24),0) -> 0.1428571429 | E31: 0.1000012048 | F31: =IF(G31="",0,F24*G31) -> 35.57142857 | G31: =IF(AND(C26>2),(F24/C26/F24),0) -> 0.1428571429 | H31: 0.4000048193 | I31: =IF(J31="",0,I24*J31) -> 19.76142857 | J31: =IF(AND(C26>2),(I24/C26/I24),0) -> 0.1428571429 | K31: 0.4999939758 | L31: 355.71
A32: 14:30:00 | B32: Snack | C32: =IF(D32="",0,C24*D32) -> 8.892857143 | D32: =IF(AND(C26>3),(C24/C26/C24),0) -> 0.1428571429 | E32: 0.1000012048 | F32: =IF(G32="",0,F24*G32) -> 35.57142857 | G32: =IF(AND(C26>3),(F24/C26/F24),0) -> 0.1428571429 | H32: 0.4000048193 | I32: =IF(J32="",0,I24*J32) -> 19.76142857 | J32: =IF(AND(C26>3),(I24/C26/I24),0) -> 0.1428571429 | K32: 0.4999939758 | L32: 355.71
A33: 18:30:00 | B33: mmm snack | C33: =IF(D33="",0,C24*D33) -> 8.892857143 | D33: =IF(AND(C26>4),(C24/C26/C24),0) -> 0.1428571429 | E33: 0.1000012048 | F33: =IF(G33="",0,F24*G33) -> 35.57142857 | G33: =IF(AND(C26>4),(F24/C26/F24),0) -> 0.1428571429 | H33: 0.4000048193 | I33: =IF(J33="",0,I24*J33) -> 19.76142857 | J33: =IF(AND(C26>4),(I24/C26/I24),0) -> 0.1428571429 | K33: 0.4999939758 | L33: 355.71
A34: 20:00:00 | B34: Dinner | C34: =IF(D34="",0,C24*D34) -> 8.892857143 | D34: =IF(AND(C26>5),(C24/C26/C24),0) -> 0.1428571429 | E34: 0.1000012048 | F34: =IF(G34="",0,F24*G34) -> 35.57142857 | G34: =IF(AND(C26>5),(F24/C26/F24),0) -> 0.1428571429 | H34: 0.4000048193 | I34: =IF(J34="",0,I24*J34) -> 19.76142857 | J34: =IF(AND(C26>5),(I24/C26/I24),0) -> 0.1428571429 | K34: 0.4999939758 | L34: 355.71
A35: 23:00:00 | B35: Late | C35: =IF(D35="",0,C24*D35) -> 8.892857143 | D35: =IF(AND(C26>6),(C24/C26/C24),0) -> 0.1428571429 | E35: 0.1000012048 | F35: =IF(G35="",0,F24*G35) -> 35.57142857 | G35: =IF(AND(C26>6),(F24/C26/F24),0) -> 0.1428571429 | H35: 0.4000048193 | I35: =IF(J35="",0,I24*J35) -> 19.76142857 | J35: =IF(AND(C26>6),(I24/C26/I24),0) -> 0.1428571429 | K35: 0.4999939758 | L35: 355.71
A36: DAILY TOTAL | C36: =ROUND(SUM(C29:C35),2) -> 62.25 | D36: =ROUND(SUM(D29:D35),2) -> 1 | E36: =IF(C36=0,0,ROUND(((SUM(C29:C35)*4))/((SUM(F29:F35)*4+(SUM(C29:C35)*4+(SUM(I29:I35)*9)))),2)) -> 0.1 | F36: =ROUND(SUM(F29:F35),2) -> 249 | G36: =ROUND(SUM(G29:G35),2) -> 1 | H36: =IF(F36=0,0,ROUND(((SUM(F29:F35)*4))/((SUM(F29:F35)*4+(SUM(C29:C35)*4+(SUM(I29:I35)*9)))),2)) -> 0.4 | I36: =ROUND(SUM(I29:I35),2) -> 138.33 | J36: =ROUND(SUM(J29:J35),2) -> 1 | K36: =IF(I36=0,0,ROUND(((SUM(I29:I35)*9))/((SUM(F29:F35)*4+(SUM(C29:C35)*4+(SUM(I29:I35)*9)))),2)) -> 0.5 | L36: =ROUND((F36*4)+(C36*4)+(I36*9),1) -> 2490 | N36: =SUM(N29:N35) -> 0
A37: Over/Under Goal | C37: =C36-C24 -> 0 | D37: =D36-1 -> 0 | F37: =F36-F24 -> 0 | G37: =G36-1 -> 0 | I37: =I36-I24 -> 0 | J37: =J36-1 -> 0 | L37: =(F37*4)+(C37*4)+(I37*9) -> 0
... 1 more rows
